Cogmind - Beta 11 @@@ ROGUE MODE // 2022.03.30 @ 08:38:33 Player: Lyra Result: Destroyed by as-95724 with Assembled Maul Performance ------------- Evolutions (0) 0 Regions Visited (2) 400 Robots Destroyed (14) 70 Value Destroyed (427) 427 Prototype IDs (0) 0 Alien Tech Used (0) 0 Bonus (0) 0 TOTAL SCORE: 897 Bonus ------- None Cogmind --------- Core Integrity 0/250 Matter 262/300 Energy 270/275 System Corruption 0% Temperature Cool (44) Movement Walking (260) Ox2 Location -10/Mines Parts ------- > --- POWER (1) -------- Deuterium Engine > --- PROPULSION (2) --- Improved Aluminum Leg > --- UTILITY (2) ------ Medium Storage Unit Targeting Computer > --- WEAPON (2) ------- Heavy Assault Cannon > --- INVENTORY (10) --- Improved Aluminum Leg Improved Aluminum Leg Experimental Sensor Array Improved Terrain Scanner Targeting Computer Targeting Computer Improved Light Armor Plating Light EM Pulse Cannon Beam Cannon Grenade Launcher Peak State ------------ > --- POWER ------------ Light Nuclear Core > --- PROPULSION ------- Improved Aluminum Leg Improved Aluminum Leg > --- UTILITY ---------- Medium Storage Unit Targeting Computer > --- WEAPON ----------- Heavy Assault Cannon > --- INVENTORY -------- Improved Aluminum Leg Improved Aluminum Leg Experimental Sensor Array Improved Terrain Scanner Targeting Computer Targeting Computer Light Armor Plating Light EM Pulse Cannon Beam Cannon Grenade Launcher [Rating: 17] Favorites ----------- Power Light Nuclear Core Engine Light Ion Engine Power Core Light Nuclear Core Propulsion Improved Aluminum Leg Treads Light Treads Leg Improved Aluminum Leg Utility Targeting Computer Device Improved Terrain Scanner Storage Small Storage Unit Processor Targeting Computer Weapon Shotgun Energy Gun Small Laser Energy Cannon Beam Cannon Ballistic Gun Shotgun Ballistic Cannon Heavy Assault Cannon Build | -11 -10 -10 ------- Run | Scr Mat Min Slots Evolved . | . . . Power . | . . . Propulsion . | . . . Utility . | . . . Weapon . | . . . Parts Attached 21 | 7 11 3 Power 6 | 1 4 1 Engine 4 | 1 2 1 Core 2 | . 2 . Reactor . | . . . Propulsion 5 | 2 3 . Treads 2 | 2 . . Leg 3 | . 3 . Wheel . | . . . Hover . | . . . Flight . | . . . Utility 4 | 2 2 . Device 1 | 1 . . Storage 2 | 1 1 . Processor 1 | . 1 . Hackware . | . . . Protection . | . . . Artifact . | . . . Weapon 6 | 2 2 2 Energy Gun 1 | 1 . . Energy Cannon 1 | . . 1 Ballistic Gun 3 | 1 2 . Ballistic Cannon 1 | . . 1 Launcher . | . . . Special Weapon . | . . . Impact Weapon . | . . . Slashing Weapon . | . . . Piercing Weapon . | . . . Special Melee Weapon . | . . . Unidentified Prototypes . | . . . Parts Lost 1 | . . 1 Power . | . . . Propulsion 1 | . . 1 Utility . | . . . Weapon . | . . . Highest Loss Streak 1 | . . 1 To Critical Strikes . | . . . Average Slot Usage (%) 99 | . 99 98 Engine 4 | . 5 1 Core 9 | . 8 12 Leg 27 | . 27 28 Device 5 | . 6 . Storage 14 | . 14 14 Processor 8 | . 7 14 Ballistic Gun 26 | . 27 23 Naked Turns . | . . . Heaviest Build 31 | 11 21 31 Greatest Support 40 | 40 40 26 Greatest Overweight (x) 1 | . 1 1 Average Overweight (x) . | . . . Largest Inventory Capacity 10 | 8 10 10 Average Capacity 8 | 7 8 10 Most Carried 10 | 5 10 10 Average Carried 8 | 3 8 9 Final Capacity 10 | 8 10 10 Final Carried 10 | 5 10 10 Class Distribution -------------------- 100% | Mutant Dominant Class ---------------- Mutant | -10/Materials Mutant | -10/Mines Resources | -11 -10 -10 ----------- Run | Scr Mat Min Matter Collected 676 | 242 383 51 Remotely . | . . . Salvage Created 557 | 96 422 39 Parts 28 | 6 17 5 Haulers Intercepted . | . . . Recyclers Shooed 2 | . 2 . Parts Field Recycled . | . . . Retrieved Matter . | . . . Parts Self-Destructed . | . . . Prevented . | . . . Kills | -11 -10 -10 ------- Run | Scr Mat Min Combat Hostiles Destroyed 11 | . 9 2 Guns 10 | . 9 1 Cannons 1 | . . 1 Classes Destroyed 5 | 2 1 2 Tunneler 1 | 1 . . Recycler 2 | 1 1 . Swarmer 1 | . . 1 Grunt 9 | . 9 . Demolisher 1 | . . 1 Best Kill Streak 3 | 2 3 1 Combat Bots Only 2 | . 2 1 Max Kills in Single Turn 1 | 1 1 1 Gunslinging . | . . . Exploded . | . . . Melee . | . . . Uniques/NPCs Destroyed . | . . . Combat | -11 -10 -10 -------- Run | Scr Mat Min Damage Taken 847 | . 354 493 Core 272 | . 121 151 Absorbed by Shields . | . . . Core Remaining (%) 100 | 100 . . Volleys Fired 43 | 4 34 5 Largest 2 | 2 2 2 Hottest 60 | 60 46 60 Shots Fired 84 | 8 68 8 Gun 82 | 8 68 6 Cannon 2 | . . 2 Launcher . | . . . Special . | . . . Kinetic 80 | 4 68 8 Thermal 4 | 4 . . Explosive . | . . . Electromagnetic . | . . . Robot Hit Streak 12 | 7 12 6 Robot Miss Streak 8 | . 8 2 Penetration Max . | . . . Secondary Targets 1 | . 1 . Max Gunslinging Chain 1 | . 1 . Shots Hit Robots 64 | 7 51 6 Core Hits 32 | 3 27 2 Critical Kills . | . . . Critical Parts Destroyed 1 | . 1 . Critical Strikes 1 | . 1 . Destroy 1 | . 1 . Melee Attacks . | . . . Impact . | . . . Slashing . | . . . Piercing . | . . . Sneak Attacks . | . . . Combat Hostiles . | . . . Follow-up Attacks . | . . . Damage Inflicted 982 | 64 750 168 Guns 867 | 64 745 58 Cannons 107 | . . 107 Explosions . | . . . Melee . | . . . Ramming 8 | . 5 3 Kinetic 929 | 19 745 165 Thermal 45 | 45 . . Explosive . | . . . Electromagnetic . | . . . Impact . | . . . Slashing . | . . . Piercing . | . . . Highest Corruption . | . . . Average Corruption . | . . . Corruption Purged . | . . . Corruption Blocked . | . . . Overload Shots . | . . . Overflow Damage . | . . . Projectiles . | . . . Explosions . | . . . Melee . | . . . Knockbacks 1 | . . 1 Impact . | . . . Kinetic 1 | . . 1 Secondary . | . . . Self-Inflicted Damage . | . . . Shots . | . . . Rammed . | . . . Targets Rammed 2 | . 1 1 Kicked 2 | . 1 1 Crushed . | . . . Highest Temperature 43 | 40 12 43 Average Temperature 9 | 16 4 15 Received Heat Transfer 267 | . 147 120 Siege Activations . | . . . Robots Corrupted . | . . . Combat Hostiles . | . . . Parts Fried . | . . . Impact Corruptions . | . . . Robots Melted . | . . . Combat Hostiles . | . . . Parts Melted . | . . . Heat Transferred 100 | 100 . . Parts Sabotaged . | . . . Parts Stolen . | . . . Parts Stripped . | . . . Power Chain Reactions . | . . . Missiles Intercepted . | . . . Alert | -11 -10 -10 ------- Run | Scr Mat Min Peak Influence 172 | 10 172 99 Initial 19 | . 6 19 Average 48 | 1 54 44 Maximum Alert Level . | . . . Low Security (%) 100 | 100 100 100 Level 1 . | . . . Level 2 . | . . . Level 3 . | . . . Level 4 . | . . . Level 5 . | . . . High Security . | . . . Max Security . | . . . Squads Dispatched 1 | . 1 . Investigation 1 | . 1 . Extermination . | . . . Reinforcement . | . . . Assault . | . . . Garrison . | . . . Intercept . | . . . Searches Triggered . | . . . Construction Impeded . | . . . Haulers Reinforced . | . . . Active Scanning Responses . | . . . Cargo Convoy Interrupts . | . . . Stealth | -11 -10 -10 --------- Run | Scr Mat Min Distress Signals 1 | . 1 . Communications Jammed . | . . . Distress Signals . | . . . Times Spotted 40 | . 19 21 Peak Tracking Total 15 | . 3 15 Tactical Retreats 1 | . . 1 Traps | -11 -10 -10 ------- Run | Scr Mat Min Traps Triggered 6 | . 5 1 Indirectly . | . . . Trap Hack Attempts . | . . . Triggered . | . . . Disarmed . | . . . Reprogrammed . | . . . Reused . | . . . Traps Extracted . | . . . Installed . | . . . Triggered . | . . . Machines | -11 -10 -10 ---------- Run | Scr Mat Min Machines Disabled . | . . . Max in Single Turn . | . . . Machines Sabotaged . | . . . Garrisons Compromised . | . . . Overloaded Fab Kills . | . . . Hacking | -11 -10 -10 --------- Run | Scr Mat Min Machines Accessed 7 | . 6 1 Terminals 5 | . 5 . Fabricators . | . . . Repair Stations . | . . . Recycling Units 1 | . 1 . Scanalyzers . | . . . Garrison Access . | . . . Total Hacks 16 | . 15 1 Successful 11 | . 10 1 Failed 5 | . 5 . Catastrophic 1 | . 1 . Database Lockouts . | . . . Manual 1 | . 1 . Terminals 14 | . 14 . Fabricators . | . . . Repair Stations . | . . . Recycling Units 1 | . 1 . Scanalyzers . | . . . Garrison Access . | . . . Terminal Hacks 10 | . 9 1 Record 2 | . 2 . Robot Analysis 1 | . 1 . Open Door 1 | . . 1 Emergency Access Points 1 | . 1 . Alert Level 1 | . 1 . Surveillance Status 1 | . 1 . Transport Status 1 | . 1 . Hauler Manifests 1 | . 1 . Registered Components 1 | . 1 . Fabricator Hacks . | . . . Repair Station Hacks . | . . . Recycling Unit Hacks 1 | . 1 . Report Inventory 1 | . 1 . Scanalyzer . | . . . Garrison Access Hacks . | . . . Unauthorized Hacks . | . . . Terminals . | . . . Fabricators . | . . . Repair Stations . | . . . Recycling Units . | . . . Scanalyzers . | . . . Garrison Access . | . . . Data Cores Recovered . | . . . Used . | . . . Hacking Detections 4 | . 4 . Full Trace Events 1 | . 1 . Feedback Events . | . . . Feedback Blocked . | . . . Robot Schematics Acquired . | . . . Robots Built . | . . . Authchips . | . . . Time . | . . . Total Robot Build Rating . | . . . Part Schematics Acquired . | . . . Parts Built . | . . . Authchips . | . . . Time . | . . . Total Part Build Rating . | . . . Parts Repaired . | . . . Time . | . . . Parts Recycled . | . . . Recycled Matter . | . . . Retrieved Matter . | . . . Retrieved Components . | . . . Parts Scanalyzed . | . . . Part Schematics Acquired . | . . . Parts Damaged . | . . . Bothacking | -11 -10 -10 ------------ Run | Scr Mat Min Used RIF Installer . | . . . Robots Hacked . | . . . Non-combat . | . . . Combat . | . . . Robot Hacks Applied . | . . . Relay Couplers Released . | . . . Fabnet Peak Effective % . | . . . Robots Rewired . | . . . Allies Hacked . | . . . Hacks Repelled . | . . . Allies | -11 -10 -10 -------- Run | Scr Mat Min Total Allies . | . . . Largest Group . | . . . Highest-Rated Group . | . . . Highest-Rated Ally . | . . . Total Orders . | . . . Ally Attacks . | . . . Total Damage . | . . . Kills . | . . . Allies Corrupted . | . . . Allies Melted . | . . . Intel | -11 -10 -10 ------- Run | Scr Mat Min Robot Analysis Total 1 | . 1 . Derelict Logs Recovered 1 | . . 1 Drone Launches . | . . . Drone Recoveries . | . . . Exploration | -11 -10 -10 ------------- Run | Scr Mat Min Turns Passed 1328 | 92 918 318 Spaces Moved 904 | 48 637 219 Core 11 | 11 . . Treads 52 | 37 15 . Legs 841 | . 622 219 Wheels . | . . . Hover . | . . . Flight . | . . . Fastest Speed 50 | 50 120 120 Average Speed 122 | 134 121 125 Slowest Speed 190 | 160 190 190 Overloaded Moves . | . . . Propulsion Burnouts . | . . . Robots Hopped . | . . . Cave-ins Triggered . | . . . Exploration Rate (%) 43 | 5 82 42 Regions Visited 2 Branch Regions 1 Pre-discovered Areas . | . . . Known Exits Taken . | . . . Unknown Exits Taken 2 | 1 1 . Scrap Searched 1 | . . 1 Spaces Dug . | . . . Terrain Destroyed . | . . . Melee . | . . . Projectile . | . . . AOE . | . . . Terrain Rammed . | . . . Walls Destroyed . | . . . Machines Disabled . | . . . Actions | -11 -10 -10 --------- Run | Scr Mat Min Total 1044 | 66 721 257 Wait 25 | . 4 21 Move 902 | 47 636 219 Hop . | . . . Pick Up 27 | 8 17 2 Fast Attach 13 | 4 6 3 Attach 5 | 3 2 . Detach . | . . . Swap 3 | . 3 . Drop 24 | . 18 6 Fire 43 | 4 34 5 Melee . | . . . Ram . | . . . Kick 2 | . 1 1 Crush . | . . . Escape Stasis . | . . . Rewire . | . . . Trap . | . . . Miscellaneous . | . . . Route ------- -11/Scrapyard -10/Materials (discovered 4 exits: [*Mat x2] / *Min x2) -10/Mines History --------- Turn | Location | Event 11 | -11/Scrapyard | Discovered new exit (range 15) 93 | -11/Scrapyard | Entered Materials 228 | -10/Materials | Discovered new exit (range 8) 335 | -10/Materials | Discovered new exit (range 10) 348 | -10/Materials | Build established: Mutant 512 | -10/Materials | Discovered new exit (range 3) 712 | -10/Materials | Discovered new exit (range 13) 1011 | -10/Materials | Entered Mines 1130 | -10/Mines | Learned 2 Materials zone layouts 1231 | -10/Mines | Found a damaged Exp. Sensor Array with a note attached 1234 | -10/Mines | Found Prototype Device 1286 | -10/Mines | Met a Derelict who couldn't figure out how to use a Trap Extractor 1288 | -10/Mines | Assembled infested the area 1315 | -10/Mines | Core integrity fell below 50% 1323 | -10/Mines | Core integrity fell below 20% 1329 | -10/Mines | Destroyed by as-95724 with Assembled Maul Last Messages --------------- 01296_ Dropped Lgt. Nuclear Core. 01297_ Acquired Deuterium Engine. 01303_ R-06 Scavenger collects Shotgun. 01304_ Dropped Lgt. Armor Plating. 01304_ Acquired Imp. Light Armor Plating. 01312_ C-30 ARC bursts open, deploying its payload. 01312_ D-53 Grenadier unfolds itself. 01322_ as-74283 destroyed. 01322_ as-12764 destroyed. 01322_ Seismic Survey Station disabled. 01322_ as-24697 destroyed. 01322_ Seismic Survey Station disabled. 01323_ The unstable cave ceiling collapses. 01325_ as-78553 destroyed. 01325_ as-87820 destroyed. 01326_ D-53 Grenadier destroyed. 01327_ R-06 Scavenger system corrupted by crushing effect. 01328_ R-06 Scavenger system terminally corrupted. 01328_ Imp. Aluminum Leg destroyed. 01329_ D-53 Grenadier knocked back. Map ----- +----------------------------------------------------+ | #### #??????????????????????????????????????????? | | #???????????????????????????????????????????????? | | #???????????????????????????????????????????????? | | #???????????????????????????????????????????????? | | #???????????????????????????????????????????????? | | #???????????????????????????????????????????????? | | #???????????????????????????????????????????????? | | #???????????????????????????????????????????????? | | ### #???????????????????????????????????????????? | | #???????????????????????????????????????????? | | ### ##???????????????????????????????????????????? | | ???##????????????????????????????????????????????? | | ?????????????????????????????????????????????????? | | ?????????????????????????????????????????????????? | | ?????????????????????????????????????????????????? | | ?????????????????????????????????????????????????? | | ?????????????????????????????????????#???????????? | | ???????????????????????????????????? ????????????? | | ?????????????????????????????????? ?????????????? | | ????????????????????????????????? #??????????????? | | ???????????????????????#########%*##?????????????? | | ???????????????????????# a [ #?????????????? | | ??????????????????????## aa =a #?????????????? | | ??????????????????????# [%" "%" ??????????????? | | ??????????????????????# a ]" """???????????????? | | ?????????????????????## @ "" """ #?????????????? | | ???????????????????### a a a #?????????????? | | ???????????????????# % """ #?????????????? | | ????????????????#### # a "" """ ??????????????? | | ???????????????## a " """???????????????? | | ???????????????# %a #?????????????? | | ???????????????#]=* != ####=####??????????????? | | ???????????????# !] ####???%#?????????????????? | | ???????????????## !d* ##??????#?????????????????? | | ???????????????## !!] ###### #?????????????????? | | ???????????????# X % ??????????????? | | ??????????????## ###?????????????????????? | | ?????????????## #???????????????????????? | | #####??#?????# ##???????????????????????? | | ## #?????##### ######????###?????????????????? | | ### #?????????# #???????? ???????????????? | | ??# ####?????????# #????????""" ""???????????????? | | ??# #????????????# #??????? """ """??????????????? | | ??# ##???????????#"#??????? """ """??????????????? | | ?## ##??????????#%#?????? ???????????????? | | ?# ############ ####### """ ""???????????????? | | ?# [ ![ """ ""???????????????? | | # ####### """ ""???????????????? | | ###############?????? ???????????????? | | ##????????????????????? """ """??????????????? | +----------------------------------------------------+ Best States ------------- Heat Dissipation 25 Energy Generation 14 Energy Capacity 275 Matter Stores 300 Matter Capacity 300 Sight Range 16 Terrain Scan Range 16 Terrain Scan Density 10 Evasion (%) 55 Targeting Accuracy 5 Recoil Reduction 2 Item Schematics ----------------- None Robot Schematics ------------------ None Fabricated ------------ Nothing Alien Tech Used ----------------- None Achievements -------------- None Challenges ------------ None Game ------ Seed AngularSmallSword Manual? 0 Play Time 00:20:16 Cumulative 197.0 hours Start 2022.03.30 @ 08:20:19 End 2022.03.30 @ 08:38:33 Sessions 1 Manual Loads 0 Difficulty Rogue Special Mode None Game No. 178 Rogue 168 Adventurer 2 Explorer 8 Win Type - Total 27 Types 13/1/3/8/1/0/0/1/0 Lore% 63 Gallery% 78 Achievement% 67 Wizard Run 0 Options --------- ASCII 0 Keyboard 0 Movement Numpad Keybinds 0 Fullscreen 2 Font 24/Smallcaps Map View 76x50 Tactical HUD 1 Map Filters NONE Filters LOW_CONTRAST(13,24,33) Steam 1 RUN: e2804dc9-89b0-4d4e-9429-d16af295b344